bitfinex/quotes_ETHUSD_20260202
["timestamp","ask_amount","ask_price","bid_price","bid_amount"]
[1770043916180,8.650478,2358.5,2356.5,1.37870524]
[1770043916375,32.47696774,2358.3,2356.3,0.891]
[1770043916581,3.82015,2358.2,2356.4,1.06093698]
[1770043916816,16.81368374,2358.2,2356.3,0.891]
[1770043916981,16.81368374,2358.2,2356.2,0.891]
[1770043916982,25.69026374,2358.1,2356.2,0.891]
[1770043917313,0.891,2358.2,2356.3,1.06098544]
[1770043917513,2.351676,2358.1,2356.2,1.95200295]
[1770043917713,2.351676,2358.1,2356.2,1.95202934]
[1770043918008,2.470232,2358.1,2356.2,1.95202934]
[1770043918211,2.175108,2358.1,2356.2,1.95202934]
[1770043918384,2.175108,2358.1,2356.2,0.891]
[1770043918579,13.35436,2358.0,2356.2,0.891]
[1770043918879,12.99353374,2358.1,2356.2,1.9520162]
[1770043919090,0.8921,2358.3,2356.2,1.9520162]
[1770043919436,0.8921,2358.3,2356.4,13.6846955]
[1770043919730,0.0011,2358.3,2356.4,13.6846955]
[1770043919936,0.0011,2358.3,2356.2,0.891]
[1770043920236,0.0011,2358.3,2355.8,12.72615509]
[1770043920237,4.325331,2358.1,2355.8,12.72615509]
[1770043920390,4.8453,2358.0,2355.9,1.27261551]
[1770043920590,3.121278,2357.8,2356.1,1.06107375]
[1770043920886,0.891,2357.9,2356.1,1.06106091]
[1770043921086,0.891,2357.9,2356.3,1.06098118]
[1770043921331,0.0011,2358.3,2356.3,13.68473627]
[1770043921532,2.88962,2358.2,2356.4,2.6838678]
[1770043921692,15.88315374,2358.2,2355.8,4.24483593]
[1770043921892,9.771718,2357.9,2355.9,1.95113542]
[1770043922119,19.05110774,2357.7,2355.9,1.0611388]
[1770043922331,12.99353374,2357.4,2355.1,12.62375509]
[1770043922514,3.441798,2357.3,2355.2,0.89]
[1770043922838,0.89,2357.6,2355.0,6.62381612]
[1770043922839,25.70137374,2357.0,2355.0,0.89]
[1770043923129,3.603524,2356.6,2354.6,0.891]
[1770043923343,5.659524,2356.4,2354.7,1.06170637]
[1770043923507,0.89,2356.5,2354.6,1.95272297]
[1770043923838,2.94519,2356.2,2354.6,0.001]
[1770043924208,12.99353374,2356.0,2354.6,0.001]
[1770043924406,3.97919,2355.9,2354.6,0.001]
[1770043924613,3.523358,2355.9,2354.6,0.001]
[1770043925014,12.99353374,2355.8,2354.4,0.001]
[1770043925212,12.99353374,2355.2,2352.9,1.06249168]
[1770043925416,0.3359703,2355.7,2353.3,12.62375509]
[1770043925417,0.89,2355.1,2353.3,12.62375509]
[1770043925927,0.3359703,2355.7,2353.4,12.62475509]
[1770043925928,0.1024,2355.7,2353.4,12.62475509]
[1770043926151,0.89,2355.6,2353.5,0.1024]
[1770043926299,12.99353374,2356.0,2353.5,0.1024]
[1770043926502,3.60353,2355.9,2353.8,0.1024]
[1770043926699,12.99353374,2355.6,2353.5,1.27271551]
[1770043926999,15.59323374,2355.5,2353.4,0.001]
[1770043927222,12.99353374,2355.5,2353.4,0.001]
[1770043927402,0.0032,2354.0,2353.4,1.06329285]
[1770043927595,0.1024,2355.8,2353.4,13.68704794]
[1770043927596,2.570112,2355.7,2353.4,13.68704794]
[1770043927843,0.1024,2355.8,2353.4,0.001]
[1770043927844,12.99353374,2355.0,2353.4,0.001]
[1770043928000,3.669371,2355.7,2353.5,12.62375509]
[1770043928202,2.208234,2355.8,2353.5,12.62375509]
[1770043928405,13.22710404,2355.7,2353.4,0.001]
[1770043928642,6.245492,2355.4,2353.4,1.42234941]
[1770043928931,4.76437,2355.2,2353.4,0.53234941]
[1770043929135,21.62556974,2355.0,2353.4,0.001]
[1770043929436,0.2335703,2355.5,2353.4,0.001]
[1770043929437,13.09593374,2355.4,2353.4,0.001]
[1770043929936,5.567338,2355.3,2353.4,0.001]
[1770043930101,6.739338,2355.2,2353.4,0.001]
[1770043930446,12.99353374,2354.7,2353.4,0.001]
[1770043930729,7.85708,2354.4,2353.4,0.001]
[1770043930901,10.323754,2354.2,2353.2,0.0008]
[1770043931098,3.050954,2355.0,2353.2,0.0008]
[1770043931297,3.047326,2354.8,2353.2,0.0008]
[1770043931530,3.264476,2354.9,2353.2,0.0008]
[1770043931730,3.047476,2354.9,2353.6,0.001]
[1770043932622,9.688246,2354.8,2353.6,0.001]
[1770043932941,4.219191,2354.8,2353.6,0.001]
[1770043933128,0.89,2355.0,2353.4,0.001]
[1770043933129,12.99353374,2354.5,2353.4,0.001]
[1770043933304,0.89,2355.0,2353.4,0.001]
[1770043933506,2.603352,2354.7,2353.4,0.001]
[1770043933733,0.891,2354.7,2353.4,0.001]
[1770043934050,13.88453374,2354.7,2353.4,0.001]
[1770043934238,0.891,2354.8,2353.4,0.001]
[1770043934440,2.124059,2354.7,2353.4,0.001]
[1770043934644,19.746802,2354.6,2353.4,0.001]
[1770043934852,16.943992,2354.6,2353.4,0.001]
[1770043935050,9.111988,2354.5,2353.4,0.001]
[1770043935276,8.290988,2354.5,2353.4,0.001]
[1770043935460,12.99353374,2354.4,2353.2,0.0008]
[1770043935621,12.99353374,2353.9,2352.5,0.0008]
[1770043935974,5.020393,2353.7,2352.5,0.0008]
[1770043936136,0.891,2353.8,2351.8,0.0008]
[1770043936137,13.22710404,2353.4,2351.8,0.0008]
[1770043936337,4.300544,2353.2,2351.8,0.0008]
[1770043936654,5.501417,2353.0,2351.8,0.0008]
[1770043936853,4.898417,2353.0,2351.8,0.0008]
[1770043937040,3.053417,2353.0,2351.8,0.0008]
[1770043937358,0.891,2353.1,2351.8,0.0008]
[1770043937557,13.32950404,2352.7,2351.0,0.0008]
[1770043937742,25.638721,2352.4,2351.0,0.0008]
[1770043937944,4.24331,2352.4,2351.0,0.0008]
[1770043938130,6.266037,2352.3,2351.0,0.0008]
[1770043938334,5.095779,2352.3,2351.0,0.0008]
[1770043938550,3.529104,2352.2,2351.0,0.0008]
[1770043938760,3.99545,2352.3,2351.0,0.0008]
[1770043939062,0.891,2352.3,2351.0,0.0008]
[1770043939226,5.507582,2352.2,2351.0,0.0008]
[1770043939423,0.891,2352.3,2351.0,0.0008]
[1770043939619,2.001359,2352.2,2351.0,0.0008]
[1770043939845,2.19852,2352.2,2351.0,0.0008]
[1770043940836,2.98515,2352.0,2351.0,0.0008]
[1770043941157,2.028142,2352.0,2351.0,0.0008]
[1770043941381,12.68395098,2351.7,2350.6,0.001]
[1770043941523,9.875774,2351.4,2350.4,0.001]
[1770043942066,9.875774,2351.4,2349.4,1.06510147]
[1770043942067,12.91752128,2351.1,2349.4,0.001]
[1770043942361,5.202737,2350.9,2349.4,0.001]
[1770043942524,0.2335703,2350.5,2349.2,0.00080048]
[1770043942721,2.763057,2350.4,2349.2,0.00080048]
[1770043943262,6.577569,2350.5,2349.2,0.00080048]
[1770043943465,4.732569,2350.5,2349.2,0.00080048]
[1770043943628,2.927526,2350.5,2349.2,0.00080048]
[1770043944165,12.81512128,2350.4,2349.2,0.00080048]
[1770043944339,30.0,2350.3,2349.2,0.00080048]
[1770043944535,22.34071229,2350.4,2348.5,0.0008012]
[1770043944536,12.91752128,2349.9,2348.5,0.0008012]
[1770043944858,7.043318,2349.8,2348.5,0.0008012]
[1770043945056,3.825622,2349.6,2348.5,0.0008012]
[1770043945300,7.421378,2349.4,2348.5,0.0008012]
[1770043945438,6.291378,2349.4,2348.5,0.0008012]
[1770043945633,3.819805,2349.4,2348.5,0.0008012]
[1770043945849,3.819805,2349.4,2347.8,0.00080144]
[1770043946054,5.238598,2349.2,2347.8,0.00080144]
[1770043946260,0.0008012,2349.3,2347.8,0.00080144]
[1770043947367,0.0008012,2349.3,2348.4,0.001]
[1770043947755,0.00080048,2350.0,2348.4,0.001]
[1770043947964,0.00080048,2350.0,2348.5,0.00080144]
[1770043948145,0.00080048,2350.0,2348.5,12.68283506]
[1770043948342,0.0011,2351.2,2348.6,13.95041713]
[1770043948561,0.892,2351.0,2349.2,0.00080072]
[1770043948872,3.781082,2350.9,2349.2,0.00080072]
[1770043949072,2.726333,2350.9,2349.2,0.00080072]
[1770043949474,15.30788398,2350.9,2349.2,0.00080072]
[1770043949677,36.09086098,2350.7,2349.2,0.00080072]
[1770043949874,5.261266,2350.6,2349.2,0.00080072]
[1770043950067,4.671706,2350.8,2349.2,0.00080072]
[1770043950680,12.58155098,2350.4,2349.2,0.00080072]
[1770043950851,12.81512128,2350.1,2348.5,0.00080144]
[1770043951173,0.89280072,2350.0,2348.5,0.00080144]
[1770043951349,0.89280072,2350.0,2348.6,1.06446175]
[1770043951550,0.89280072,2350.0,2348.5,0.00080144]
[1770043951879,0.89280072,2350.0,2348.5,12.68283506]
[1770043952076,0.89280072,2350.0,2348.5,0.00080144]
[1770043952279,8.194804,2349.9,2348.5,0.00080144]
[1770043952802,6.821698,2349.9,2348.5,0.00080144]
[1770043952976,0.89280072,2350.0,2348.4,0.001]
[1770043952977,0.00080144,2349.3,2348.4,0.001]
[1770043954246,0.00080072,2350.0,2348.5,0.00080168]
[1770043954674,0.0011,2351.2,2349.2,0.00080096]
[1770043954946,0.0011,2351.2,2349.2,12.68283458]
[1770043955275,0.0011,2351.2,2349.3,2.16028346]
[1770043955574,11.657384,2351.1,2349.3,15.0144492]
[1770043955775,0.0011,2351.2,2349.3,15.0144492]
[1770043956377,0.0011,2351.2,2349.5,12.68203362]
[1770043956580,1.342,2352.7,2349.8,12.68203362]
[1770043956783,13.47355098,2352.3,2349.9,2.18701168]
[1770043956984,13.47355098,2352.3,2349.7,12.68203362]
[1770043957188,0.0011,2352.4,2350.3,12.68203362]
[1770043957373,0.0011,2352.4,2350.7,12.68203362]
[1770043957574,3.399512,2353.6,2351.7,0.0008]
[1770043957774,2.737672,2353.6,2351.8,0.892]
[1770043957974,11.105721,2353.5,2351.8,0.892]
[1770043958296,22.93042298,2353.5,2351.7,0.0008]
[1770043958592,13.439807,2353.4,2351.7,0.0008]
[1770043958793,0.34543307,2353.7,2351.7,12.68283362]
[1770043958966,2.202157,2353.6,2351.7,0.8928]
[1770043959171,2.202157,2353.6,2351.7,0.0008]
[1770043960494,12.91752128,2353.3,2351.7,0.0008]
[1770043960673,0.0011,2352.4,2351.7,0.0008]
[1770043961782,0.892,2353.2,2351.7,0.0008]
[1770043962358,0.34543307,2353.7,2351.7,0.8928]
[1770043962559,12.58315098,2354.0,2352.1,12.68203362]
[1770043962560,0.0016,2354.0,2352.1,12.68203362]
[1770043962762,0.0016,2354.0,2352.2,13.96047698]
[1770043963064,2.255792,2353.9,2352.2,1.27844336]
[1770043963266,0.1024,2353.8,2351.9,0.892]
[1770043963467,5.475006,2353.7,2351.9,0.892]
[1770043963867,5.475006,2353.7,2351.7,0.0008]
[1770043963868,0.1024,2353.1,2351.7,0.0008]
[1770043964071,12.956028,2353.0,2351.7,0.0008]
[1770043964270,12.956028,2353.0,2351.0,0.0008]
[1770043964271,12.91752128,2352.7,2351.0,0.0008]
[1770043964595,4.399229,2352.6,2351.0,0.0008]
[1770043965004,12.68395098,2352.7,2351.0,0.0008]
[1770043965005,30.0,2352.4,2351.0,0.0008]
[1770043965168,0.1024,2352.7,2351.0,0.0008]
[1770043965370,0.892,2353.0,2351.6,1.06309859]
[1770043965700,1.49113153,2353.6,2351.5,0.1024]
[1770043965701,2.663703,2353.6,2351.5,0.1024]
[1770043966006,22.620862,2353.8,2351.5,14.68366565]
[1770043966302,16.171506,2353.6,2351.6,0.892]
[1770043966714,0.8936,2354.0,2351.6,13.57403362]
[1770043967011,2.474572,2353.9,2351.6,13.57403362]
[1770043967169,23.410037,2353.8,2351.7,1.35740336]
[1770043967364,24.636257,2353.9,2351.7,1.35740336]
[1770043967775,12.28961183,2353.6,2351.7,1.35740336]
[1770043967969,4.365472,2353.5,2351.6,1.06307959]
[1770043968169,4.365472,2353.5,2351.3,0.892]
[1770043968506,27.91526883,2352.8,2351.0,0.0008]
[1770043968814,4.117755,2352.6,2351.0,1.06415159]
[1770043968969,0.892,2352.7,2351.1,0.53178248]
[1770043969170,2.849157,2352.6,2351.0,0.0008]
[1770043970278,0.892,2352.7,2351.0,0.0008]
[1770043970474,2.738327,2352.6,2351.0,0.0008]
[1770043970668,0.9944,2353.1,2351.0,0.0008]
[1770043970892,4.597666,2353.0,2351.0,0.0008]
[1770043971170,36.46752388,2352.6,2351.0,0.0008]
[1770043971397,30.0,2352.5,2351.0,0.0008]
[1770043971603,10.687203,2352.1,2351.0,0.0008]
[1770043971806,8.558643,2351.9,2351.0,0.0008]
[1770043972125,17.533728,2351.6,2349.4,0.001]
[1770043972280,3.584863,2351.6,2350.0,0.001]
[1770043972890,13.05199388,2351.5,2350.0,0.001]
[1770043973179,20.84342,2351.3,2350.0,0.001]
[1770043973394,10.934838,2351.1,2350.0,0.001]
[1770043973591,0.892,2351.2,2350.0,0.001]
[1770043973793,11.949795,2351.1,2350.0,0.001]
[1770043973996,4.561466,2351.1,2350.0,0.001]
[1770043974178,13.05199388,2351.5,2350.0,0.001]
[1770043974379,21.318939,2351.2,2350.0,0.001]
[1770043974604,6.169633,2351.2,2350.0,0.001]
[1770043974804,3.653022,2351.2,2350.0,0.001]
[1770043975012,6.68891,2351.4,2350.0,0.001]
[1770043975404,0.892,2351.6,2350.0,0.001]
[1770043975711,3.29745,2351.5,2350.0,0.001]
[1770043975909,0.892,2351.6,2350.0,0.001]
[1770043976692,0.892,2351.6,2350.0,11.78574047]
[1770043976907,6.403733,2352.4,2350.1,12.96331452]
[1770043977096,3.931712,2352.2,2350.1,13.85531452]
[1770043977293,0.892,2352.5,2350.3,11.78474047]
[1770043977504,12.94959388,2353.3,2350.3,11.78474047]
[1770043977505,5.268433,2353.2,2350.9,11.78474047]
[1770043977705,1.49223153,2353.4,2350.9,11.78474047]
[1770043977706,0.0011,2353.4,2351.2,0.1024]
[1770043977884,0.0011,2353.4,2351.3,12.67674047]
[1770043978282,0.0011,2353.4,2351.5,11.78474047]
[1770043978585,3.188432,2353.3,2351.6,0.892]
[1770043978925,3.188432,2353.3,2351.5,0.892]
[1770043979286,13.85504143,2353.2,2351.5,0.892]
[1770043979527,27.801824,2353.0,2351.5,0.892]
[1770043979685,14.048903,2353.1,2351.5,0.892]
[1770043979888,2.169115,2352.9,2351.5,0.892]
[1770043980129,1.12953083,2353.3,2351.5,0.892]
[1770043980130,18.865694,2353.1,2351.5,0.892]
[1770043980357,6.168897,2352.9,2351.0,4.25343123]
[1770043980493,6.168897,2352.9,2350.5,0.892]
[1770043980494,1.79756879,2352.8,2350.8,4.25382741]
[1770043980688,0.90556879,2352.7,2351.2,1.063258]
[1770043980884,12.94959388,2352.4,2350.5,0.892]
[1770043981092,12.94959388,2352.4,2350.0,0.001]
[1770043981093,10.569361,2352.1,2350.0,0.001]
[1770043981291,14.07912471,2352.2,2350.3,1.0636927]
[1770043981292,4.937017,2351.9,2350.3,1.0636927]
[1770043981594,4.937017,2351.9,2350.0,0.001]
[1770043981595,2.988585,2351.9,2350.0,0.001]
[1770043981809,2.601678,2351.9,2350.0,0.001]
[1770043982011,2.562195,2351.7,2350.0,0.001]
[1770043982209,0.90720153,2351.6,2350.0,0.001]
[1770043982414,0.90802488,2351.5,2350.0,0.001]
[1770043982618,8.37834,2351.7,2350.0,0.001]
[1770043982822,4.300565,2351.5,2350.0,0.001]
[1770043983017,3.258042,2351.5,2350.0,0.001]
[1770043983233,1.12953083,2351.8,2350.0,0.001]
[1770043983533,1.12953083,2351.8,2350.0,11.78574047]
[1770043983690,1.12953083,2351.8,2350.0,0.001]
[1770043983895,3.084608,2351.7,2350.0,0.001]
[1770043984105,14.18924883,2351.5,2350.0,0.001]
[1770043984302,7.79289,2351.3,2350.0,0.001]
[1770043984535,0.90942234,2351.2,2350.0,0.001]
[1770043984857,5.355679,2350.9,2350.0,0.001]
[1770043985142,6.13387783,2350.7,2349.8,0.001]
[1770043985325,0.90942234,2350.6,2349.8,0.001]
[1770043985534,0.90942234,2350.6,2350.2,0.001]
[1770043985535,0.90942234,2350.5,2350.2,0.001]
[1770043985702,1.80142234,2350.5,2349.4,0.001]
[1770043985907,1.80142234,2350.5,2348.5,4.258716]
[1770043985908,1.12953083,2350.3,2348.7,1.06440692]
[1770043986246,6.171637,2350.2,2348.6,1.06443629]
[1770043986404,0.90942234,2350.1,2348.5,1.06527519]
[1770043986606,6.01197283,2350.3,2349.0,0.001]
[1770043986805,1.12953083,2350.1,2349.0,0.001]
[1770043987042,0.90983624,2350.0,2349.0,0.001]
[1770043987201,5.29103183,2350.2,2349.0,0.001]
[1770043987403,15.19118621,2350.6,2349.0,0.001]
[1770043987404,0.26206624,2350.1,2349.0,0.001]
[1770043987632,4.90538483,2350.4,2349.0,0.001]
[1770043987813,0.90883699,2350.3,2349.0,0.001]
[1770043988004,0.90883699,2350.2,2349.0,0.001]
[1770043988227,7.031418,2350.0,2349.0,0.001]
[1770043988426,7.031418,2350.0,2348.5,0.00080168]
[1770043988427,3.287473,2349.8,2348.5,0.00080168]
[1770043988632,1.80083699,2349.7,2348.5,0.00080168]
[1770043988948,0.892,2349.7,2348.5,0.00080168]
[1770043989449,0.00080096,2350.0,2348.5,0.00080168]
[1770043990126,2.03727743,2349.9,2348.5,0.00080168]
[1770043990365,0.9077466,2349.8,2348.5,0.00080168]
[1770043990639,3.77509,2349.7,2348.5,0.00080168]
[1770043990842,11.09327,2349.8,2348.5,0.00080168]
[1770043991032,2.377139,2349.6,2348.5,0.00080168]
[1770043991231,4.616309,2349.8,2348.5,0.00080168]
[1770043991417,0.00080096,2350.0,2348.5,0.00080168]
[1770043992342,7.9885,2349.9,2348.5,0.00080168]
[1770043992845,19.662063,2349.7,2348.5,0.00080168]
[1770043993042,12.94959388,2349.9,2348.5,0.00080168]
[1770043993043,2.255423,2349.5,2348.5,0.00080168]
[1770043994174,5.252314,2349.2,2347.8,0.00080144]
[1770043994333,0.00080168,2349.3,2347.8,0.00080144]
[1770043994542,0.89280168,2349.3,2347.8,0.00080144]
[1770043996446,0.89280168,2349.3,2347.8,11.78554191]
[1770043996656,0.00080168,2349.3,2348.0,11.78474047]
[1770043996954,0.00080096,2350.0,2348.0,11.78474047]
[1770043997154,0.00080096,2350.0,2348.5,11.78554239]
[1770043997464,0.00080096,2350.0,2348.5,12.67854239]
[1770043998027,0.00080096,2350.0,2348.6,1.06446393]
[1770043998338,0.00080096,2350.0,2348.7,1.80008641]
[1770043998527,0.00080096,2350.0,2348.5,1.95831094]
[1770043998826,0.00080096,2350.0,2348.5,1.95830592]
[1770043999853,0.00080096,2350.0,2348.5,0.89380192]
[1770044000064,2.782981,2349.8,2348.5,0.00080192]
[1770044000240,0.00080096,2350.0,2348.5,0.00080192]
[1770044000560,10.7514553,2349.8,2348.5,0.00080192]
[1770044000760,2.458811,2349.6,2348.5,0.00080192]
[1770044000962,0.90829479,2349.5,2348.5,0.00080192]
[1770044001258,2.348579,2349.6,2348.5,0.00080192]
[1770044001561,18.61007162,2349.4,2348.0,0.001]
[1770044001762,0.9093577,2349.3,2348.0,0.001]
[1770044001969,0.90855578,2349.2,2348.0,0.001]
[1770044002264,0.00080192,2349.3,2348.0,0.001]
[1770044002842,18.35967737,2349.2,2348.0,0.001]
[1770044003042,0.90834275,2349.1,2348.0,0.001]
[1770044003446,12.02910262,2349.2,2348.0,0.001]
[1770044003770,6.976156,2349.0,2348.0,0.001]
[1770044004072,12.02910262,2348.5,2347.2,0.001]
[1770044004242,12.26267292,2348.3,2347.2,0.001]
[1770044004558,0.90808861,2348.2,2347.2,0.001]
[1770044004757,0.893,2348.1,2347.2,0.001]
[1770044005951,0.893,2348.1,2346.3,0.00080072]
[1770044005952,12.02910262,2347.9,2346.3,0.00080072]
[1770044006266,12.02910262,2347.9,2345.6,0.00080048]
[1770044006267,0.2335703,2347.6,2345.6,0.00080048]
[1770044006426,5.319802,2347.7,2345.6,0.00080048]
[1770044006427,0.00080072,2347.1,2345.6,0.00080048]
[1770044006630,5.405504,2346.9,2345.6,0.00080048]
[1770044007129,0.893,2346.9,2345.6,0.00080048]
[1770044007532,0.893,2347.0,2345.6,0.00080048]
[1770044007741,9.71401,2346.9,2345.6,0.00080048]
[1770044007942,8.666877,2346.9,2345.6,0.00080048]
[1770044008234,0.893,2346.9,2345.6,0.00080048]
[1770044009367,9.315065,2346.8,2345.6,0.00080048]
[1770044009565,3.268426,2346.8,2345.6,0.00080048]
[1770044009861,0.893,2346.9,2345.6,0.00080048]
[1770044010409,2.234233,2347.0,2345.6,0.00080048]
[1770044010660,0.22350337,2346.9,2345.6,0.00080048]
[1770044010855,2.515093,2347.0,2345.6,0.00080048]
[1770044011049,2.517233,2347.0,2345.6,0.00080048]
[1770044011252,0.00080072,2347.1,2345.6,11.81085955]
[1770044012056,0.00080072,2347.1,2345.8,0.001]
[1770044012380,0.00080072,2347.1,2345.8,11.81105907]
[1770044012664,0.00080168,2347.8,2346.3,11.81086003]
[1770044013886,3.594434,2348.5,2347.0,0.00080192]
[1770044014086,2.547434,2348.5,2347.0,0.00080192]
[1770044014383,2.761603,2348.3,2347.0,0.00080192]
[1770044014542,17.810907,2348.4,2347.0,0.00080192]
[1770044014737,0.90741498,2348.3,2347.0,0.00080192]
[1770044014975,2.457475,2348.4,2347.0,0.00080192]
[1770044015151,0.90741142,2348.3,2347.0,0.00080192]
[1770044015470,3.964944,2348.4,2347.0,0.00080192]
[1770044015637,2.520826,2348.2,2347.0,0.00080192]
[1770044015835,3.120115,2348.4,2347.0,0.00080192]
[1770044016041,0.90786043,2348.3,2347.0,0.00080192]
[1770044016240,3.434457,2348.4,2347.0,0.00080192]
[1770044016441,0.90813695,2348.3,2347.0,0.00080192]
[1770044016686,3.190126,2348.4,2347.0,0.00080192]
[1770044016837,0.90812769,2348.3,2347.0,0.00080192]
[1770044017041,2.605976,2348.3,2347.0,0.00080192]
[1770044017270,2.313976,2348.3,2347.0,0.00080192]
[1770044017471,0.893,2348.4,2347.0,0.00080192]
[1770044017776,41.71196662,2348.1,2347.0,0.00080192]
[1770044017949,7.66799,2347.9,2347.0,0.00080192]
[1770044018155,6.522667,2347.7,2346.3,0.00080096]
[1770044018468,0.90920811,2347.8,2346.3,0.00080096]
[1770044018469,4.435758,2347.5,2346.3,0.00080096]
[1770044018680,12.9379459,2347.4,2346.3,0.00080096]
[1770044018875,0.90884328,2347.3,2346.3,0.00080096]
[1770044019283,2.703199,2347.3,2346.3,0.00080096]
[1770044019574,2.268576,2347.4,2346.3,0.00080096]
[1770044019773,0.90885081,2347.3,2346.3,0.00080096]
[1770044019983,1.13484504,2347.8,2346.3,0.00080096]
[1770044020148,0.90870311,2347.7,2346.3,0.00080096]
[1770044020488,0.90886708,2347.6,2346.3,0.00080096]
[1770044020706,0.00080192,2347.8,2346.3,0.00080096]
[1770044020987,0.90886396,2347.7,2346.3,0.00080096]
[1770044021190,0.00080192,2347.8,2346.3,0.00080096]
[1770044022060,1.13404312,2348.4,2346.5,11.81005907]
[1770044022261,0.0011,2349.1,2347.0,11.81086123]
[1770044022262,1.13514312,2349.1,2347.0,11.81086123]
[1770044022460,0.0011,2349.1,2347.1,12.70305907]
[1770044023778,0.0011,2349.1,2347.1,11.81005907]
[1770044023961,0.0011,2349.1,2347.2,12.70305907]
[1770044024177,0.0011,2349.1,2347.6,11.81005907]
[1770044024362,0.0011,2349.1,2347.8,0.00080168]
[1770044024957,0.90911037,2349.0,2347.8,0.00080168]
[1770044025163,11.885958,2349.0,2347.8,0.00080168]
[1770044025563,3.732063,2349.0,2347.8,0.00080168]
[1770044025772,0.9092093,2348.9,2347.8,0.00080168]
[1770044025973,2.258673,2348.7,2347.8,0.00080168]
[1770044026265,8.557216,2348.9,2347.8,0.00080168]
[1770044026592,0.9093973,2348.8,2347.8,0.00080168]
[1770044026776,1.13404312,2349.0,2347.8,0.00080168]
[1770044027096,7.498582,2348.8,2347.8,0.00080168]
[1770044027283,7.498582,2348.8,2347.2,0.001]
[1770044027284,14.46392068,2348.6,2347.2,0.001]
[1770044027483,16.488556,2348.3,2347.2,0.001]
[1770044027789,2.04342506,2348.2,2347.2,0.001]
[1770044028017,0.90938194,2348.2,2347.2,0.001]
[1770044028290,1.13404312,2348.2,2347.2,0.001]
[1770044028662,2.04342506,2348.2,2347.2,0.001]
[1770044028858,0.90938194,2348.1,2347.2,0.001]
[1770044029059,0.90938194,2348.1,2347.0,0.00180216]
[1770044029060,1.13404312,2347.8,2347.0,0.00180216]
[1770044029291,0.90938194,2347.7,2347.0,0.00180216]
[1770044029498,0.90938194,2347.6,2347.0,0.00180216]
[1770044029696,1.13404312,2348.0,2347.0,0.00180216]
[1770044029864,2.04615639,2348.0,2347.0,0.00180216]
[1770044030065,1.49113153,2348.2,2347.0,0.00180216]
[1770044030066,0.91211327,2347.9,2347.0,0.00180216]
[1770044030300,1.13404312,2348.1,2347.0,0.00180216]
[1770044031194,2.0468023,2348.0,2347.0,0.00180216]
[1770044031394,0.91275918,2347.9,2347.0,0.00180216]
[1770044031566,0.91275918,2347.8,2347.0,0.00180216]
[1770044031765,0.91275918,2347.7,2347.0,0.00180216]
[1770044031966,1.13404312,2348.0,2347.0,0.00180216]
[1770044032175,1.13404312,2347.8,2347.0,0.00180216]
[1770044032375,1.13404312,2347.8,2346.3,0.00080096]
[1770044032376,1.13404312,2347.7,2346.3,0.00080096]
[1770044032716,0.26259768,2347.6,2346.3,0.00080096]
[1770044033021,1.3966408,2347.6,2346.3,0.00080096]
[1770044033219,1.13404312,2347.4,2346.3,0.00080096]
[1770044033368,14.72636812,2347.2,2346.3,0.00080096]
[1770044033706,2.04734132,2347.1,2346.3,0.00080096]
[1770044033868,2.04734132,2347.0,2346.3,0.00080096]
[1770044034072,2.04734132,2346.9,2346.3,0.00080096]
[1770044034302,0.9132982,2346.8,2346.3,0.00080096]
[1770044034507,0.9132982,2346.7,2346.3,0.00080096]
[1770044034706,1.13404312,2346.9,2346.3,0.00080096]
[1770044034903,1.39656059,2346.9,2346.3,0.00080096]
[1770044035208,0.91428554,2346.8,2346.3,0.00080096]
[1770044035416,0.91428554,2346.7,2346.0,0.003]
[1770044035723,0.91428554,2346.6,2346.0,0.003]
[1770044036022,1.13404312,2346.9,2346.0,0.003]
[1770044036386,2.04821597,2346.9,2346.0,0.003]
[1770044036606,0.91417285,2346.8,2346.0,0.003]
[1770044036781,0.91417285,2346.7,2346.0,0.003]
[1770044036976,1.13404312,2346.9,2346.0,0.003]
[1770044037196,1.39664068,2346.9,2346.0,0.003]
[1770044037390,2.04810012,2346.8,2346.0,0.003]
[1770044037596,2.04810012,2346.7,2346.0,0.003]
[1770044037915,1.75372909,2346.9,2346.0,0.003]
[1770044037916,0.914057,2346.6,2346.0,0.003]
[1770044038102,1.13404312,2346.9,2346.0,0.003]
[1770044038307,1.49113153,2347.0,2346.0,0.003]
[1770044038308,0.91417436,2346.8,2346.0,0.003]
[1770044038483,0.89480096,2347.1,2346.0,0.003]
[1770044038683,0.91424022,2347.0,2346.0,0.003]
[1770044038905,1.13404312,2347.5,2346.0,12.65284033]
[1770044039184,0.91407826,2347.4,2346.3,0.0008012]
[1770044039384,0.91407826,2347.3,2346.3,0.0008012]
[1770044039611,1.13404312,2347.6,2346.3,12.65064153]
[1770044039817,2.04849539,2347.6,2346.3,0.0008012]
[1770044040092,2.04849539,2347.5,2346.3,0.0008012]
[1770044040292,2.04849539,2347.4,2346.3,0.0008012]
[1770044040544,0.91445227,2347.3,2346.3,0.0008012]
[1770044040820,2.04849539,2347.3,2346.5,0.001]
[1770044041527,1.13404312,2347.1,2346.5,0.001]
[1770044041730,7.77919139,2347.0,2346.0,0.003]
[1770044041895,2.04849539,2346.9,2346.0,0.003]
[1770044042093,9.710337,2346.7,2346.0,0.003]
[1770044042314,2.04849539,2346.6,2346.0,0.003]
[1770044042520,0.894,2346.7,2345.3,0.001]
[1770044042521,1.13404312,2346.2,2345.3,0.001]
[1770044042787,0.91445227,2346.1,2344.9,0.0008]
[1770044042986,1.13404312,2346.3,2344.9,0.0008]
[1770044043188,0.91499471,2346.2,2344.9,0.0008]
[1770044043434,0.91499471,2346.1,2344.9,0.0008]
[1770044043593,1.13404312,2346.4,2344.9,0.0008]
[1770044043798,2.04847835,2346.4,2345.1,12.64984033]
[1770044043992,0.91443523,2346.3,2345.1,12.64984033]
[1770044044216,2.02804312,2346.6,2345.1,12.64984033]
[1770044044530,0.91400895,2346.5,2345.1,12.64984033]
[1770044044693,0.91400895,2346.4,2344.9,0.0008]